[Event "Early-Titled-Tuesday-Blitz-January-30-2024"]
[Site "Chess.com"]
[Date "2024.01.30"]
[Round "1"]
[White "averageFM"]
[Black "dianamirza"]
[Result "1-0"]
[WhiteElo "2562"]
[BlackElo "2001"]
[TimeControl "180+1"]
[EndTime "8:08:24 PST"]
[Termination "averageFM won by checkmate"]

1. d4 {[%clk 0:02:59.7]} 1... Nf6 {[%clk 0:02:56.9]} 2. Nc3 {[%clk 0:02:58.1]}
2... d6 {[%clk 0:02:51.7]} 3. e4 {[%clk 0:02:56.8]} 3... e5 {[%clk 0:02:48.5]}
4. dxe5 {[%clk 0:02:57.1]} 4... dxe5 {[%clk 0:02:49.4]} 5. Qxd8+ {[%clk
0:02:57.1]} 5... Kxd8 {[%clk 0:02:50.3]} 6. Bc4 {[%clk 0:02:57.5]} 6... Be6
{[%clk 0:02:49.4]} 7. Bxe6 {[%clk 0:02:57.2]} 7... fxe6 {[%clk 0:02:50.3]} 8. a3
{[%clk 0:02:43.6]} 8... a5 {[%clk 0:02:45.2]} 9. Nf3 {[%clk 0:02:43.4]} 9... Bd6
{[%clk 0:02:35.6]} 10. Bg5 {[%clk 0:02:39.9]} 10... h6 {[%clk 0:02:31.3]} 11.
Bh4 {[%clk 0:02:39.4]} 11... g5 {[%clk 0:02:31.4]} 12. Bg3 {[%clk 0:02:39.2]}
12... Nbd7 {[%clk 0:02:30.9]} 13. O-O-O {[%clk 0:02:39.4]} 13... Ke7 {[%clk
0:02:30.2]} 14. Nd2 {[%clk 0:02:33.9]} 14... Nh5 {[%clk 0:02:20.9]} 15. Nc4
{[%clk 0:02:31.7]} 15... Nf4 {[%clk 0:02:01.5]} 16. Bxf4 {[%clk 0:02:24.4]}
16... exf4 {[%clk 0:01:58.7]} 17. Nb5 {[%clk 0:02:21.4]} 17... Bc5 {[%clk
0:01:37.5]} 18. Nxc7 {[%clk 0:02:20.6]} 18... Rac8 {[%clk 0:01:36.1]} 19. Nb5
{[%clk 0:02:20.3]} 19... Bxf2 {[%clk 0:01:33.2]} 20. Rxd7+ {[%clk 0:02:00]}
20... Kxd7 {[%clk 0:01:26.7]} 21. Ne5+ {[%clk 0:02:00.4]} 21... Ke7 {[%clk
0:01:06.2]} 22. Ng6+ {[%clk 0:02:00]} 22... Kf6 {[%clk 0:01:03]} 23. Nxh8 {[%clk
0:02:00]} 23... Rxh8 {[%clk 0:01:03.5]} 24. Rd1 {[%clk 0:02:00]} 24... Be3+
{[%clk 0:01:01.6]} 25. Kb1 {[%clk 0:02:00]} 25... Ke5 {[%clk 0:00:45.4]} 26. Nd6
{[%clk 0:01:57]} 26... Bc5 {[%clk 0:00:33.2]} 27. Nf7+ {[%clk 0:01:56.4]} 27...
Kxe4 {[%clk 0:00:29.8]} 28. Nxh8 {[%clk 0:01:56.8]} 28... g4 {[%clk 0:00:29.4]}
29. c3 {[%clk 0:01:47.3]} 29... f3 {[%clk 0:00:27.7]} 30. gxf3+ {[%clk 0:01:47]}
30... gxf3 {[%clk 0:00:25.3]} 31. Kc2 {[%clk 0:01:46.5]} 31... Ke3 {[%clk
0:00:21.8]} 32. Re1+ {[%clk 0:01:40]} 32... Kf2 {[%clk 0:00:16.9]} 33. Rxe6
{[%clk 0:01:35]} 33... Be3 {[%clk 0:00:13.6]} 34. Kd3 {[%clk 0:01:31.7]} 34...
Bc1 {[%clk 0:00:13.2]} 35. b3 {[%clk 0:01:20.8]} 35... Kf1 {[%clk 0:00:10.6]}
36. Kc2 {[%clk 0:00:47]} 36... Bg5 {[%clk 0:00:08.5]} 37. Re5 {[%clk 0:00:35.1]}
37... f2 {[%clk 0:00:08.1]} 38. Rxa5 {[%clk 0:00:30.3]} 38... Kg1 {[%clk
0:00:06.6]} 39. Rf5 {[%clk 0:00:30.1]} 39... f1=Q {[%clk 0:00:03.7]} 40. Rxf1+
{[%clk 0:00:30.5]} 40... Kxf1 {[%clk 0:00:04.6]} 41. Nf7 {[%clk 0:00:30.5]}
41... Kg2 {[%clk 0:00:04.4]} 42. Nd6 {[%clk 0:00:30.4]} 42... Kxh2 {[%clk
0:00:02.3]} 43. Nxb7 {[%clk 0:00:30.5]} 43... h5 {[%clk 0:00:02.8]} 44. Nc5
{[%clk 0:00:24.6]} 44... h4 {[%clk 0:00:03.3]} 45. Ne4 {[%clk 0:00:24.6]} 45...
Bf4 {[%clk 0:00:03.2]} 46. Kd3 {[%clk 0:00:18.3]} 46... Kg2 {[%clk 0:00:03.1]}
47. Ke2 {[%clk 0:00:18]} 47... h3 {[%clk 0:00:02.7]} 48. Nf2 {[%clk 0:00:18.2]}
48... h2 {[%clk 0:00:02.4]} 49. a4 {[%clk 0:00:17]} 49... Bg3 {[%clk 0:00:02.9]}
50. Nh1 {[%clk 0:00:17.1]} 50... Kxh1 {[%clk 0:00:02.3]} 51. Kf1 {[%clk
0:00:17.3]} 51... Bc7 {[%clk 0:00:01.7]} 52. b4 {[%clk 0:00:16.9]} 52... Bb6
{[%clk 0:00:01.6]} 53. a5 {[%clk 0:00:16.6]} 53... Ba7 {[%clk 0:00:01.6]} 54. b5
{[%clk 0:00:16.7]} 54... Bb8 {[%clk 0:00:01.9]} 55. b6 {[%clk 0:00:16.9]} 55...
Bd6 {[%clk 0:00:01.9]} 56. a6 {[%clk 0:00:17]} 56... Bb8 {[%clk 0:00:02.3]} 57.
c4 {[%clk 0:00:15.9]} 57... Bc7 {[%clk 0:00:02.1]} 58. b7 {[%clk 0:00:14.9]}
58... Bb8 {[%clk 0:00:02.5]} 59. c5 {[%clk 0:00:15.2]} 59... Bc7 {[%clk
0:00:03.1]} 60. a7 {[%clk 0:00:15.2]} 60... Bb8 {[%clk 0:00:03.6]} 61. a8=Q
{[%clk 0:00:14.9]} 61... Bc7 {[%clk 0:00:03.8]} 62. b8=Q# {[%clk 0:00:14.9]} 1-0

[Event "Early-Titled-Tuesday-Blitz-January-30-2024"]
[Site "Chess.com"]
[Date "2024.01.30"]
[Round "1"]
[White "GKARU"]
[Black "GoltsevDmitry2000"]
[Result "1-0"]
[WhiteElo "2509"]
[BlackElo "2832"]
[TimeControl "180+1"]
[EndTime "8:08:28 PST"]
[Termination "GKARU won by checkmate"]

1. d4 {[%clk 0:03:00.9]} 1... e6 {[%clk 0:03:00]} 2. Nf3 {[%clk 0:03:01]} 2...
d5 {[%clk 0:03:00.5]} 3. c4 {[%clk 0:03:01]} 3... Nf6 {[%clk 0:03:01.4]} 4. Bg5
{[%clk 0:03:00.9]} 4... dxc4 {[%clk 0:03:01.5]} 5. Qa4+ {[%clk 0:03:00.2]} 5...
Nc6 {[%clk 0:03:01.1]} 6. Nbd2 {[%clk 0:02:57.1]} 6... Be7 {[%clk 0:03:00.3]} 7.
e3 {[%clk 0:02:56.3]} 7... Bd7 {[%clk 0:03:00]} 8. Qxc4 {[%clk 0:02:54.5]} 8...
h6 {[%clk 0:03:00.5]} 9. Bh4 {[%clk 0:02:53.8]} 9... O-O {[%clk 0:03:00.3]} 10.
Rc1 {[%clk 0:02:52.2]} 10... a6 {[%clk 0:03:00.4]} 11. Be2 {[%clk 0:02:51.3]}
11... b5 {[%clk 0:03:00]} 12. Qc2 {[%clk 0:02:50.5]} 12... Nb4 {[%clk
0:02:59.6]} 13. Qb1 {[%clk 0:02:50.2]} 13... Nbd5 {[%clk 0:02:58.3]} 14. O-O
{[%clk 0:02:45.1]} 14... Rc8 {[%clk 0:02:54.9]} 15. Nb3 {[%clk 0:02:45.6]} 15...
c6 {[%clk 0:02:36.2]} 16. Nc5 {[%clk 0:02:35.1]} 16... a5 {[%clk 0:02:35.4]} 17.
Ne5 {[%clk 0:02:30.7]} 17... Be8 {[%clk 0:02:30.1]} 18. Rfd1 {[%clk 0:02:28.9]}
18... a4 {[%clk 0:02:15.5]} 19. a3 {[%clk 0:02:24]} 19... Nd7 {[%clk 0:02:01.7]}
20. Bxe7 {[%clk 0:02:04.3]} 20... Qxe7 {[%clk 0:02:02.6]} 21. Ncxd7 {[%clk
0:01:51.4]} 21... Bxd7 {[%clk 0:02:03.5]} 22. Rc5 {[%clk 0:01:50.9]} 22... Qd6
{[%clk 0:01:55.7]} 23. Rdc1 {[%clk 0:01:49.5]} 23... Ne7 {[%clk 0:01:55.6]} 24.
Bf3 {[%clk 0:01:47.4]} 24... Be8 {[%clk 0:01:42.2]} 25. Qc2 {[%clk 0:01:45.9]}
25... Rb8 {[%clk 0:01:35.6]} 26. h3 {[%clk 0:01:42.9]} 26... b4 {[%clk
0:01:33.6]} 27. Qxa4 {[%clk 0:01:42]} 27... bxa3 {[%clk 0:01:32.7]} 28. bxa3
{[%clk 0:01:34.5]} 28... Rb2 {[%clk 0:01:32.5]} 29. Nc4 {[%clk 0:01:31.2]} 29...
Qb8 {[%clk 0:01:30.9]} 30. Nxb2 {[%clk 0:01:29.9]} 30... Qxb2 {[%clk 0:01:31.8]}
31. Qb4 {[%clk 0:01:29.2]} 31... Qxb4 {[%clk 0:01:20.2]} 32. axb4 {[%clk
0:01:30.1]} 32... Nd5 {[%clk 0:01:20.3]} 33. Bxd5 {[%clk 0:01:18.6]} 33... exd5
{[%clk 0:01:21.2]} 34. Ra1 {[%clk 0:01:15.8]} 34... Bd7 {[%clk 0:01:14.2]} 35.
Ra7 {[%clk 0:01:16.1]} 35... Rd8 {[%clk 0:01:14.1]} 36. b5 {[%clk 0:01:14.2]}
36... Be8 {[%clk 0:01:11.1]} 37. b6 {[%clk 0:01:11.7]} 37... Rb8 {[%clk
0:01:10]} 38. b7 {[%clk 0:01:11.5]} 38... Kf8 {[%clk 0:01:09.9]} 39. Rc2 {[%clk
0:01:03.1]} 39... Ke7 {[%clk 0:00:58.3]} 40. Rb2 {[%clk 0:01:03.5]} 40... Kd6
{[%clk 0:00:58.2]} 41. Ra8 {[%clk 0:01:03.1]} 41... Kc7 {[%clk 0:00:47.4]} 42.
Rxb8 {[%clk 0:01:01.6]} 42... Kxb8 {[%clk 0:00:48.3]} 43. f3 {[%clk 0:00:55.8]}
43... f5 {[%clk 0:00:30.6]} 44. g4 {[%clk 0:00:55]} 44... Bd7 {[%clk 0:00:20]}
45. Kf2 {[%clk 0:00:54.5]} 45... g5 {[%clk 0:00:19.3]} 46. Kg3 {[%clk 0:00:52]}
46... Be6 {[%clk 0:00:19.1]} 47. f4 {[%clk 0:00:49]} 47... Bd7 {[%clk
0:00:17.9]} 48. gxf5 {[%clk 0:00:37.2]} 48... Bxf5 {[%clk 0:00:18]} 49. h4
{[%clk 0:00:36.5]} 49... g4 {[%clk 0:00:17.7]} 50. h5 {[%clk 0:00:35.8]} 50...
Bd7 {[%clk 0:00:17.6]} 51. Rb6 {[%clk 0:00:33.2]} 51... Bf5 {[%clk 0:00:15.3]}
52. Rxc6 {[%clk 0:00:32.7]} 52... Kxb7 {[%clk 0:00:16.2]} 53. Rxh6 {[%clk
0:00:32.9]} 53... Bd3 {[%clk 0:00:16.6]} 54. Kxg4 {[%clk 0:00:29.4]} 54... Be4
{[%clk 0:00:16.5]} 55. Kg5 {[%clk 0:00:29.5]} 55... Bc2 {[%clk 0:00:16.7]} 56.
Rf6 {[%clk 0:00:30]} 56... Kc7 {[%clk 0:00:16.6]} 57. f5 {[%clk 0:00:30.5]}
57... Kb7 {[%clk 0:00:16.7]} 58. h6 {[%clk 0:00:31.1]} 58... Ba4 {[%clk
0:00:09.8]} 59. h7 {[%clk 0:00:30.9]} 59... Bd7 {[%clk 0:00:07.4]} 60. h8=Q
{[%clk 0:00:31.1]} 60... Bc8 {[%clk 0:00:08.3]} 61. Qg7+ {[%clk 0:00:30.8]}
61... Ka8 {[%clk 0:00:05.8]} 62. Rf7 {[%clk 0:00:26.5]} 62... Bb7 {[%clk
0:00:05.5]} 63. e4 {[%clk 0:00:24.9]} 63... dxe4 {[%clk 0:00:05.6]} 64. Rxb7
{[%clk 0:00:24.7]} 64... e3 {[%clk 0:00:06.5]} 65. Ra7+ {[%clk 0:00:24.2]} 65...
Kb8 {[%clk 0:00:06.4]} 66. Qc7# {[%clk 0:00:25.1]} 1-0

[Event "Early-Titled-Tuesday-Blitz-January-30-2024"]
[Site "Chess.com"]
[Date "2024.01.30"]
[Round "1"]
[White "bancsoo"]
[Black "Schattman"]
[Result "1-0"]
[WhiteElo "2818"]
[BlackElo "2462"]
[TimeControl "180+1"]
[EndTime "8:08:28 PST"]
[Termination "bancsoo won on time"]

1. Nf3 {[%clk 0:03:00.9]} 1... Nf6 {[%clk 0:02:59.1]} 2. g3 {[%clk 0:03:01.1]}
2... g6 {[%clk 0:02:59.6]} 3. Bg2 {[%clk 0:03:01.7]} 3... Bg7 {[%clk 0:03:00.3]}
4. d4 {[%clk 0:03:02.4]} 4... d5 {[%clk 0:03:00.3]} 5. c4 {[%clk 0:03:02.7]}
5... c6 {[%clk 0:03:00.2]} 6. O-O {[%clk 0:03:02.3]} 6... O-O {[%clk 0:03:00.1]}
7. Qb3 {[%clk 0:03:02.6]} 7... a5 {[%clk 0:02:58.3]} 8. cxd5 {[%clk 0:03:00.7]}
8... a4 {[%clk 0:02:57.8]} 9. Qd1 {[%clk 0:03:01.3]} 9... cxd5 {[%clk 0:02:55]}
10. Nc3 {[%clk 0:03:01.3]} 10... Qa5 {[%clk 0:02:42.9]} 11. Ne5 {[%clk
0:03:01.1]} 11... Nc6 {[%clk 0:02:35.5]} 12. e3 {[%clk 0:02:39]} 12... Be6
{[%clk 0:02:21.2]} 13. Nd3 {[%clk 0:02:37.9]} 13... b6 {[%clk 0:02:09.8]} 14.
Nf4 {[%clk 0:02:36.4]} 14... Bg4 {[%clk 0:02:03.2]} 15. Qd2 {[%clk 0:02:27.3]}
15... Rfd8 {[%clk 0:01:56.5]} 16. Nfxd5 {[%clk 0:02:24.9]} 16... Nxd5 {[%clk
0:01:53.5]} 17. Nxd5 {[%clk 0:02:20.7]} 17... Rxd5 {[%clk 0:01:46.1]} 18. Qxa5
{[%clk 0:02:19]} 18... Raxa5 {[%clk 0:01:43.4]} 19. Bd2 {[%clk 0:02:19.1]} 19...
Rab5 {[%clk 0:01:43]} 20. Rfc1 {[%clk 0:02:14.2]} 20... Nd8 {[%clk 0:01:12.8]}
21. Bxd5 {[%clk 0:01:51.8]} 21... Rxd5 {[%clk 0:01:13.7]} 22. Rc4 {[%clk
0:01:28.2]} 22... a3 {[%clk 0:01:08.4]} 23. bxa3 {[%clk 0:01:25.6]} 23... e5
{[%clk 0:01:07]} 24. Bc3 {[%clk 0:01:20.2]} 24... Be2 {[%clk 0:00:56.7]} 25. Rc8
{[%clk 0:01:15.7]} 25... exd4 {[%clk 0:00:35.9]} 26. exd4 {[%clk 0:01:14.3]}
26... Bxd4 {[%clk 0:00:34.3]} 27. Re1 {[%clk 0:00:52.2]} 27... Bxc3 {[%clk
0:00:32.6]} 28. Rxe2 {[%clk 0:00:46.9]} 28... Bf6 {[%clk 0:00:26.3]} 29. Rc6
{[%clk 0:00:45]} 29... Bd4 {[%clk 0:00:19.9]} 30. Rc8 {[%clk 0:00:43.4]} 30...
Bf6 {[%clk 0:00:19.3]} 31. a4 {[%clk 0:00:35.1]} 31... Kg7 {[%clk 0:00:19]} 32.
Rb8 {[%clk 0:00:34.4]} 32... Bd4 {[%clk 0:00:16.7]} 33. Kg2 {[%clk 0:00:28.5]}
33... Ne6 {[%clk 0:00:16]} 34. Ra8 {[%clk 0:00:24.8]} 34... Rc5 {[%clk
0:00:12.9]} 35. Rd2 {[%clk 0:00:23]} 35... Rc4 {[%clk 0:00:10]} 36. Re2 {[%clk
0:00:20.2]} 36... Bc5 {[%clk 0:00:09.2]} 37. Ra7 {[%clk 0:00:20.5]} 37... Kf6
{[%clk 0:00:08.5]} 38. Ra6 {[%clk 0:00:19.7]} 38... h5 {[%clk 0:00:07.9]} 39. h4
{[%clk 0:00:18]} 39... Rc3 {[%clk 0:00:07.9]} 40. Ra7 {[%clk 0:00:15.6]} 40...
Rc4 {[%clk 0:00:07.8]} 41. a5 {[%clk 0:00:15.6]} 41... Ra4 {[%clk 0:00:07.8]}
42. axb6 {[%clk 0:00:16.1]} 42... Rxa7 {[%clk 0:00:07.4]} 43. bxa7 {[%clk
0:00:16.7]} 43... Bxa7 {[%clk 0:00:07.8]} 44. a4 {[%clk 0:00:17.4]} 44... Bb6
{[%clk 0:00:07.6]} 45. Rb2 {[%clk 0:00:17.3]} 45... Bd8 {[%clk 0:00:06.1]} 46.
Rb5 {[%clk 0:00:17.1]} 46... Ke7 {[%clk 0:00:05.5]} 47. a5 {[%clk 0:00:17.1]}
47... Nc7 {[%clk 0:00:05]} 48. Rb6 {[%clk 0:00:17.1]} 48... Nd5 {[%clk
0:00:04.6]} 49. Rb7+ {[%clk 0:00:16.9]} 49... Ke6 {[%clk 0:00:04.5]} 50. a6
{[%clk 0:00:17.5]} 50... Bb6 {[%clk 0:00:03]} 51. a7 {[%clk 0:00:16.7]} 51...
Bxa7 {[%clk 0:00:03.2]} 52. Rxa7 {[%clk 0:00:17.4]} 52... Kf6 {[%clk 0:00:04]}
53. Kf3 {[%clk 0:00:17.4]} 53... Ne7 {[%clk 0:00:04]} 54. Ra6+ {[%clk
0:00:16.6]} 54... Kg7 {[%clk 0:00:03.6]} 55. Ke4 {[%clk 0:00:17.2]} 55... Nf5
{[%clk 0:00:03.5]} 56. Ke5 {[%clk 0:00:17.5]} 56... Ne7 {[%clk 0:00:03.5]} 57.
Rb6 {[%clk 0:00:16.2]} 57... Nf5 {[%clk 0:00:03.4]} 58. Rb7 {[%clk 0:00:16.4]}
58... Nh6 {[%clk 0:00:02.7]} 59. Kd6 {[%clk 0:00:15.2]} 59... Ng4 {[%clk
0:00:02.8]} 60. Ke7 {[%clk 0:00:14.5]} 60... Nxf2 {[%clk 0:00:01.6]} 61. Ke8
{[%clk 0:00:15.1]} 1-0

[Event "Early-Titled-Tuesday-Blitz-January-30-2024"]
[Site "Chess.com"]
[Date "2024.01.30"]
[Round "1"]
[White "jeetjain"]
[Black "FormerProdigy"]
[Result "0-1"]
[WhiteElo "2533"]
[BlackElo "3023"]
[TimeControl "180+1"]
[EndTime "8:08:36 PST"]
[Termination "FormerProdigy won by resignation"]

1. b3 {[%clk 0:03:00.9]} 1... e5 {[%clk 0:02:58]} 2. Bb2 {[%clk 0:03:00.5]} 2...
Nc6 {[%clk 0:02:58.6]} 3. e3 {[%clk 0:02:58]} 3... d5 {[%clk 0:02:59]} 4. d4
{[%clk 0:02:55.4]} 4... exd4 {[%clk 0:02:51.5]} 5. exd4 {[%clk 0:02:55.6]} 5...
Nf6 {[%clk 0:02:51.9]} 6. Nf3 {[%clk 0:02:55.6]} 6... Bg4 {[%clk 0:02:48.7]} 7.
Be2 {[%clk 0:02:55.4]} 7... Bd6 {[%clk 0:02:46.9]} 8. O-O {[%clk 0:02:55.4]}
8... O-O {[%clk 0:02:47.2]} 9. h3 {[%clk 0:02:55.5]} 9... Bh5 {[%clk 0:02:47]}
10. Nbd2 {[%clk 0:02:55.7]} 10... Re8 {[%clk 0:02:45.2]} 11. c4 {[%clk
0:02:54.3]} 11... Bf4 {[%clk 0:02:37.9]} 12. Re1 {[%clk 0:02:47.2]} 12... Qd7
{[%clk 0:02:25.1]} 13. Ne5 {[%clk 0:02:34.8]} 13... Nxe5 {[%clk 0:02:25.1]} 14.
dxe5 {[%clk 0:02:22.1]} 14... Bxe5 {[%clk 0:02:26]} 15. Bxe5 {[%clk 0:02:14.3]}
15... Rxe5 {[%clk 0:02:26.9]} 16. Bxh5 {[%clk 0:02:11.9]} 16... Rxe1+ {[%clk
0:02:25.6]} 17. Qxe1 {[%clk 0:02:12.4]} 17... Nxh5 {[%clk 0:02:26.5]} 18. Qe5
{[%clk 0:02:03.1]} 18... Nf6 {[%clk 0:02:25.3]} 19. cxd5 {[%clk 0:02:00.5]}
19... Re8 {[%clk 0:02:25.4]} 20. Qg3 {[%clk 0:01:38.4]} 20... Qxd5 {[%clk
0:02:16]} 21. Nf3 {[%clk 0:01:32.8]} 21... Re7 {[%clk 0:02:09.1]} 22. Rc1 {[%clk
0:01:28]} 22... Ne4 {[%clk 0:01:58.5]} 23. Qf4 {[%clk 0:01:25]} 23... Qd6 {[%clk
0:01:55.4]} 24. Qe3 {[%clk 0:01:15.5]} 24... b6 {[%clk 0:01:26.6]} 25. Re1
{[%clk 0:01:03.9]} 25... Kf8 {[%clk 0:01:19.6]} 26. Nd4 {[%clk 0:00:57]} 26...
Nc3 {[%clk 0:01:08.3]} 27. Qxe7+ {[%clk 0:00:53.7]} 27... Qxe7 {[%clk
0:01:09.2]} 28. Rxe7 {[%clk 0:00:54.4]} 28... Kxe7 {[%clk 0:01:10.1]} 29. a4
{[%clk 0:00:53.3]} 29... a6 {[%clk 0:01:05.4]} 30. f3 {[%clk 0:00:50.6]} 30...
g6 {[%clk 0:01:02.3]} 31. Kf2 {[%clk 0:00:49.3]} 31... c5 {[%clk 0:01:02.8]} 32.
Nc2 {[%clk 0:00:42]} 32... Kd6 {[%clk 0:00:55.6]} 33. Ke3 {[%clk 0:00:39.8]}
33... b5 {[%clk 0:00:47.9]} 34. axb5 {[%clk 0:00:35.5]} 34... axb5 {[%clk
0:00:48.8]} 35. Kd3 {[%clk 0:00:35.9]} 35... Nd5 {[%clk 0:00:49.1]} 36. g3
{[%clk 0:00:28.4]} 36... f5 {[%clk 0:00:47]} 37. f4 {[%clk 0:00:26.4]} 37... h5
{[%clk 0:00:44.6]} 38. h4 {[%clk 0:00:22.6]} 38... Nf6 {[%clk 0:00:36.5]} 39.
Ke3 {[%clk 0:00:15.8]} 39... Ne4 {[%clk 0:00:30.7]} 40. Ne1 {[%clk 0:00:09.2]}
40... Kd5 {[%clk 0:00:16]} 41. Nd3 {[%clk 0:00:08.1]} 41... c4 {[%clk
0:00:13.9]} 42. bxc4+ {[%clk 0:00:08.4]} 42... Kxc4 {[%clk 0:00:14.8]} 43. Ne5+
{[%clk 0:00:08.9]} 43... Kc3 {[%clk 0:00:15.2]} 44. Nxg6 {[%clk 0:00:06.3]}
44... b4 {[%clk 0:00:15]} 45. Ne7 {[%clk 0:00:07.2]} 45... b3 {[%clk 0:00:10.3]}
46. Nxf5 {[%clk 0:00:07.1]} 46... b2 {[%clk 0:00:10.1]} 47. Kxe4 {[%clk
0:00:07.3]} 47... b1=Q+ {[%clk 0:00:10.4]} 48. Ke5 {[%clk 0:00:08.2]} 48... Qd3
{[%clk 0:00:07.2]} 49. Kf6 {[%clk 0:00:08.2]} 49... Kd2 {[%clk 0:00:07.3]} 50.
Kg5 {[%clk 0:00:08.3]} 50... Qd5 {[%clk 0:00:06.6]} 51. Kg6 {[%clk 0:00:07.4]}
51... Ke2 {[%clk 0:00:07.1]} 52. Nh6 {[%clk 0:00:05.4]} 52... Qd3+ {[%clk
0:00:06.2]} 53. Kxh5 {[%clk 0:00:05.1]} 53... Qxg3 {[%clk 0:00:05.8]} 54. f5
{[%clk 0:00:05.7]} 54... Kf3 {[%clk 0:00:04.7]} 55. f6 {[%clk 0:00:05.6]} 55...
Kf4 {[%clk 0:00:04.9]} 56. f7 {[%clk 0:00:05.1]} 56... Qg7 {[%clk 0:00:05.4]}
57. f8=Q+ {[%clk 0:00:03.6]} 57... Qxf8 {[%clk 0:00:05.8]} 58. Ng8 {[%clk
0:00:03.6]} 58... Qxg8 {[%clk 0:00:05.8]} 0-1

[Event "Early-Titled-Tuesday-Blitz-January-30-2024"]
[Site "Chess.com"]
[Date "2024.01.30"]
[Round "1"]
[White "Cayse"]
[Black "tomesao"]
[Result "1-0"]
[WhiteElo "2860"]
[BlackElo "2480"]
[TimeControl "180+1"]
[EndTime "8:08:38 PST"]
[Termination "Cayse won by resignation"]

1. e4 {[%clk 0:03:00.9]} 1... c6 {[%clk 0:02:58.2]} 2. Nf3 {[%clk 0:03:00.2]}
2... d5 {[%clk 0:02:55.8]} 3. d3 {[%clk 0:03:00.7]} 3... dxe4 {[%clk 0:02:49.4]}
4. dxe4 {[%clk 0:03:01.6]} 4... Nd7 {[%clk 0:02:49.6]} 5. Nbd2 {[%clk
0:02:54.9]} 5... e5 {[%clk 0:02:48.9]} 6. g3 {[%clk 0:02:50.7]} 6... Ngf6 {[%clk
0:02:48.3]} 7. Bg2 {[%clk 0:02:50.8]} 7... Bc5 {[%clk 0:02:46]} 8. O-O {[%clk
0:02:50.6]} 8... O-O {[%clk 0:02:45.4]} 9. Qe2 {[%clk 0:02:50.3]} 9... Re8
{[%clk 0:02:41.2]} 10. a4 {[%clk 0:02:48.9]} 10... a5 {[%clk 0:02:40.5]} 11. h3
{[%clk 0:02:47]} 11... Nf8 {[%clk 0:02:37.2]} 12. Rd1 {[%clk 0:02:46]} 12... Qc7
{[%clk 0:02:33.8]} 13. Nb3 {[%clk 0:02:41.4]} 13... Bb6 {[%clk 0:02:27.2]} 14.
Bg5 {[%clk 0:02:40.4]} 14... N6d7 {[%clk 0:02:21.7]} 15. Qc4 {[%clk 0:02:26.1]}
15... Ne6 {[%clk 0:02:17.9]} 16. Rd2 {[%clk 0:01:58.5]} 16... Nxg5 {[%clk
0:02:10]} 17. Nxg5 {[%clk 0:01:59.4]} 17... Nf8 {[%clk 0:02:04.1]} 18. Rad1
{[%clk 0:01:52.6]} 18... h6 {[%clk 0:01:32.6]} 19. Nf3 {[%clk 0:01:51.9]} 19...
Be6 {[%clk 0:01:29]} 20. Qc3 {[%clk 0:01:52]} 20... f6 {[%clk 0:01:28.2]} 21.
Bf1 {[%clk 0:01:46.7]} 21... Qf7 {[%clk 0:01:25.2]} 22. Nc5 {[%clk 0:01:45.1]}
22... Bxc5 {[%clk 0:01:21.7]} 23. Qxc5 {[%clk 0:01:44.6]} 23... Qc7 {[%clk
0:01:12]} 24. Nh4 {[%clk 0:01:41.8]} 24... Red8 {[%clk 0:01:10.8]} 25. Nf5
{[%clk 0:01:36.3]} 25... Rxd2 {[%clk 0:00:56.1]} 26. Rxd2 {[%clk 0:01:35.7]}
26... Rd8 {[%clk 0:00:55.6]} 27. Rxd8 {[%clk 0:00:50.9]} 27... Qxd8 {[%clk
0:00:56.5]} 28. Qd6 {[%clk 0:00:51.3]} 28... Qxd6 {[%clk 0:00:42.2]} 29. Nxd6
{[%clk 0:00:52.2]} 29... b6 {[%clk 0:00:40.2]} 30. Bc4 {[%clk 0:00:52.2]} 30...
Bxc4 {[%clk 0:00:31.4]} 31. Nxc4 {[%clk 0:00:51.2]} 31... Nd7 {[%clk 0:00:31.1]}
32. f3 {[%clk 0:00:45.6]} 32... Kf7 {[%clk 0:00:31]} 33. Kf2 {[%clk 0:00:45.4]}
33... Ke7 {[%clk 0:00:27.3]} 34. Ke3 {[%clk 0:00:44.5]} 34... Kd8 {[%clk
0:00:25.8]} 35. Nd6 {[%clk 0:00:43.9]} 35... Ke7 {[%clk 0:00:24.6]} 36. Nf5+
{[%clk 0:00:43]} 36... Kf7 {[%clk 0:00:23.8]} 37. b3 {[%clk 0:00:42.4]} 37...
Nc5 {[%clk 0:00:20.8]} 38. Nd6+ {[%clk 0:00:41.8]} 38... Ke6 {[%clk 0:00:17.8]}
39. Nc4 {[%clk 0:00:41.8]} 39... Nd7 {[%clk 0:00:15.6]} 40. f4 {[%clk
0:00:42.2]} 40... g6 {[%clk 0:00:14.7]} 41. c3 {[%clk 0:00:24.1]} 41... Ke7
{[%clk 0:00:10.6]} 42. b4 {[%clk 0:00:23.4]} 42... axb4 {[%clk 0:00:09.5]} 43.
cxb4 {[%clk 0:00:24.3]} 43... Kd8 {[%clk 0:00:09.2]} 44. a5 {[%clk 0:00:18.3]}
44... bxa5 {[%clk 0:00:08.9]} 45. bxa5 {[%clk 0:00:18]} 45... Kc7 {[%clk
0:00:09.2]} 46. h4 {[%clk 0:00:16]} 46... h5 {[%clk 0:00:08.2]} 47. f5 {[%clk
0:00:16.4]} 47... gxf5 {[%clk 0:00:05.9]} 48. exf5 {[%clk 0:00:17.3]} 48... Nc5
{[%clk 0:00:05.4]} 49. g4 {[%clk 0:00:15.7]} 49... hxg4 {[%clk 0:00:05]} 50. h5
{[%clk 0:00:16.1]} 50... Nd7 {[%clk 0:00:04.4]} 51. h6 {[%clk 0:00:16.3]} 51...
Nf8 {[%clk 0:00:04.6]} 52. Kf2 {[%clk 0:00:16.2]} 52... c5 {[%clk 0:00:03.6]}
53. Kg3 {[%clk 0:00:16.2]} 53... Kc6 {[%clk 0:00:04.2]} 54. Kxg4 {[%clk
0:00:15.7]} 54... Kb5 {[%clk 0:00:04.8]} 55. Kg3 {[%clk 0:00:11.2]} 55... Ka6
{[%clk 0:00:03.1]} 56. Kf3 {[%clk 0:00:09.5]} 56... Kb5 {[%clk 0:00:03.3]} 57.
Ke2 {[%clk 0:00:09.9]} 57... Ka6 {[%clk 0:00:02.2]} 58. Kd2 {[%clk 0:00:10.2]}
58... Kb5 {[%clk 0:00:02.6]} 59. Kd3 {[%clk 0:00:10.7]} 59... Ka6 {[%clk
0:00:02.7]} 60. Ke4 {[%clk 0:00:10.8]} 60... Kb5 {[%clk 0:00:03.2]} 61. Kd5
{[%clk 0:00:11.2]} 61... Ka6 {[%clk 0:00:03.1]} 62. Kd6 {[%clk 0:00:11]} 62...
e4 {[%clk 0:00:03.4]} 63. Kxc5 {[%clk 0:00:10]} 63... e3 {[%clk 0:00:02.9]} 64.
Nxe3 {[%clk 0:00:10.1]} 64... Kxa5 {[%clk 0:00:03.5]} 65. Kd6 {[%clk 0:00:10.4]}
65... Ka6 {[%clk 0:00:03.9]} 66. Nd5 {[%clk 0:00:10.3]} 66... Kb7 {[%clk
0:00:03.8]} 67. Nxf6 {[%clk 0:00:10.1]} 67... Kc8 {[%clk 0:00:03.3]} 68. Ke7
{[%clk 0:00:10.1]} 68... Kc7 {[%clk 0:00:03.7]} 69. Kxf8 {[%clk 0:00:10]} 1-0